Cogmind - Beta 15 @@@ ROGUE MODE // 2025.10.04 @ 17:32:20 Player: DietSnapple Result: Self-destructed Performance ------------- Evolutions (1) 500 Regions Visited (3) 600 Robots Destroyed (6) 30 Value Destroyed (68) 68 Prototype IDs (1) 20 Alien Tech Used (0) 0 Bonus (0) 0 TOTAL SCORE: 1218 Bonus ------- None Cogmind --------- Core Integrity 358/400 Matter 210/300 Energy 124/125 System Corruption 0% Temperature Cool (2) Movement Flying (37) Location -9/Materials Parts ------- > --- POWER (1) -------- Light Ion Engine > --- PROPULSION (3) --- Flight Unit Flight Unit > --- UTILITY (3) ------ Experimental Sensor Array Signal Interpreter Terrain Scan Processor > --- WEAPON (2) ------- Light Assault Rifle > --- INVENTORY (5) ---- Light Ion Engine Small Storage Unit Light Assault Rifle Peak State ------------ > --- POWER ------------ Light Ion Engine > --- PROPULSION ------- Flight Unit Flight Unit Flight Unit > --- UTILITY ---------- Weight Redist. System Experimental Sensor Array Signal Interpreter > --- WEAPON ----------- Light Assault Rifle Light Assault Rifle > --- INVENTORY -------- Light Ion Engine Small Storage Unit Mining Laser [Rating: 18] Favorites ----------- Power Ion Engine Engine Ion Engine Propulsion Light Treads Treads Light Treads Flight Unit Flight Unit Utility Small Storage Unit Device Seismic Detector Storage Small Storage Unit Processor Signal Interpreter Weapon Light Assault Rifle Energy Gun EM Pulse Gun Ballistic Gun Light Assault Rifle Special Weapon Mining Laser Build | -11 -10 -10 -9 ------- Run | Yrd Mat Min Mat Slots Evolved 2 | . . . 2 Power . | . . . . Propulsion 1 | . . . 1 Utility 1 | . . . 1 Weapon . | . . . . Parts Attached 17 | 9 . 1 7 Power 2 | 2 . . . Engine 2 | 2 . . . Core . | . . . . Reactor . | . . . . Propulsion 5 | 2 . . 3 Treads 2 | 2 . . . Leg . | . . . . Wheel . | . . . . Hover . | . . . . Flight 3 | . . . 3 Utility 6 | 2 . 1 3 Device 3 | 1 . 1 1 Storage 1 | 1 . . . Processor 2 | . . . 2 Hackware . | . . . . Protection . | . . . . Artifact . | . . . . Weapon 4 | 3 . . 1 Energy Gun 1 | 1 . . . Energy Cannon . | . . . . Ballistic Gun 2 | 2 . . . Ballistic Cannon . | . . . . Launcher . | . . . . Special Weapon 1 | . . . 1 Impact Weapon . | . . . . Slashing Weapon . | . . . . Piercing Weapon . | . . . . Special Melee Weapon . | . . . . Unidentified Prototypes 1 | . . 1 . Parts Lost 2 | . . . 2 Power . | . . . . Propulsion 1 | . . . 1 Utility . | . . . . Weapon 1 | . . . 1 Highest Loss Streak 2 | . . . 2 To Critical Strikes . | . . . . Average Backups 3 | 1 2 5 3 Power 1 | . 1 1 1 Propulsion . | . . 1 . Utility . | . . . . Weapon 1 | . 1 1 1 Tool/Special . | . . . . Unused Backups 2 | . . 1 1 Power 1 | . . . 1 Propulsion . | . . . . Utility . | . . . . Weapon . | . . . . Tool/Special 1 | . . 1 . Average Slot Usage (%) 99 | . 100 100 97 Engine 13 | . 14 14 11 Treads 25 | . 28 28 2 Flight 2 | . . . 29 Device 13 | . 14 14 11 Storage 13 | . 14 14 6 Processor 1 | . . . 13 Ballistic Gun 27 | . 28 28 20 Peak Build Rating 18 | 7 7 15 18 Average Rating 8 | 4 7 9 17 On Entrance 7 | . 7 7 15 Naked Turns . | . . . . Heaviest Build 13 | 13 13 13 13 Greatest Support 40 | 40 40 40 40 Greatest Overweight (x) 4 | 4 . . . Average Overweight (x) . | . . . . Largest Inventory Capacity 8 | 8 8 8 8 Average Capacity 7 | 6 8 8 6 Most Carried 8 | 2 3 8 8 Average Carried 3 | 1 2 5 3 Final Capacity 8 | 8 8 8 5 Final Carried 8 | 2 3 8 3 Class Distribution -------------------- 100% | Mutant Dominant Class ---------------- Mutant | -10/Materials Mutant | -10/Mines Mutant | -9/Materials Resources | -11 -10 -10 -9 ----------- Run | Yrd Mat Min Mat Matter Collected 343 | 321 6 16 . Remotely . | . . . . Salvage Created 194 | 128 41 25 . Parts 14 | 5 4 5 . Haulers Intercepted . | . . . . Recyclers Shooed . | . . . . Parts Field Recycled . | . . . . Retrieved Matter . | . . . . Parts Self-Destructed . | . . . . Prevented . | . . . . Kills | -11 -10 -10 -9 ------- Run | Yrd Mat Min Mat Combat Hostiles Destroyed 3 | . 1 2 . Guns 3 | . 1 2 . Classes Destroyed 5 | 3 1 1 . Worker 1 | 1 . . . Tunneler 1 | 1 . . . Recycler 1 | 1 . . . Swarmer 2 | . . 2 . Grunt 1 | . 1 . . Best Kill Streak 2 | 1 1 2 . Combat Bots Only 2 | . 1 2 . Max Kills in Single Turn 1 | 1 1 1 . Gunslinging . | . . . . Exploded . | . . . . Melee . | . . . . Uniques/NPCs Destroyed . | . . . . Combat | -11 -10 -10 -9 -------- Run | Yrd Mat Min Mat Hostile Shots Fired 49 | . 7 24 18 Missed 18 | . 1 7 10 Hits 31 | . 6 17 8 Projectile 31 | . 6 17 8 Critical Strikes 2 | . . 1 1 Damage Taken 334 | . 68 146 120 Core 94 | . . 52 42 Absorbed by Shields . | . . . . Core Remaining (%) 89 | 100 . 79 . Volleys Fired 34 | 21 3 8 2 Largest 2 | 2 2 2 1 Hottest 100 | 60 40 40 100 Shots Fired 66 | 42 6 16 2 Gun 64 | 42 6 16 . Cannon . | . . . . Launcher . | . . . . Special 2 | . . . 2 Kinetic 53 | 31 6 16 . Thermal 2 | . . . 2 Explosive . | . . . . Electromagnetic 11 | 11 . . . Robot Hit Streak 7 | 7 3 5 . Robot Miss Streak 3 | 3 2 3 . Penetration Max . | . . . . Secondary Targets . | . . . . Shots Hit Robots 37 | 25 3 9 . Core Hits 12 | 7 2 3 . Critical Kills . | . . . . Critical Parts Destroyed 1 | . 1 . . Critical Strikes 1 | . 1 . . Destroy 1 | . 1 . . Melee Attacks . | . . . . Impact . | . . . . Slashing . | . . . . Piercing . | . . . . Sneak Attacks . | . . . . Combat Hostiles . | . . . . Follow-up Attacks . | . . . . Damage Inflicted 330 | 236 23 71 . Guns 330 | 236 23 71 . Cannons . | . . . . Explosions . | . . . . Melee . | . . . . Ramming . | . . . . Kinetic 252 | 158 23 71 . Thermal . | . . . . Explosive . | . . . . Electromagnetic 78 | 78 . . . Impact . | . . . . Slashing . | . . . . Piercing . | . . . . Highest Corruption . | . . . . Average Corruption . | . . . . Corruption Purged . | . . . . Corruption Blocked . | . . . . Overload Shots . | . . . . Overflow Damage . | . . . . Projectiles . | . . . . Explosions . | . . . . Melee . | . . . . Knockbacks . | . . . . Impact . | . . . . Kinetic . | . . . . Secondary . | . . . . Self-Inflicted Damage . | . . . . Shots . | . . . . Rammed . | . . . . Targets Rammed . | . . . . Kicked . | . . . . Crushed . | . . . . Highest Temperature 60 | 60 12 . 46 Average Temperature 23 | 25 9 . 23 Received Heat Transfer 105 | . 36 . 69 Siege Activations . | . . . . Martial Activations . | . . . . Shielding Activations . | . . . . Robots Disrupted . | . . . . Combat Hostiles . | . . . . Robots Corrupted . | . . . . Combat Hostiles . | . . . . Parts Fried . | . . . . Impact Corruptions . | . . . . Robots Melted . | . . . . Combat Hostiles . | . . . . Parts Melted . | . . . . Heat Transferred . | . . . . Parts Sabotaged . | . . . . Parts Stolen . | . . . . Parts Stripped . | . . . . Power Chain Reactions . | . . . . Alert | -11 -10 -10 -9 ------- Run | Yrd Mat Min Mat Maximum Alert Level . | . . . . Low Security (%) 100 | 100 100 100 100 Level 1 . | . . . . Level 2 . | . . . . Level 3 . | . . . . Level 4 . | . . . . Level 5 . | . . . . High Security . | . . . . Max Security . | . . . . Peak Influence 67 | 5 20 50 67 Initial . | . . . . Average 3 | . . 3 22 Influence Increases 196 | 15 24 50 107 Destroy 0b10 Robot/C 60 | . 20 40 . Destroy 0b10 Robot/NC 15 | 15 . . . Destroy Leader 10 | . . 10 . Successful Hack 4 | . 4 . . Destroy Structure 2 | . . . 2 Partial Spotted 30 | . . . 30 Lose Combat Pursuer 75 | . . . 75 Influence Decreases 149 | 15 24 50 60 Time Decay 129 | 15 24 50 40 Lost Part 20 | . . . 20 Squads Dispatched 2 | . 1 . 1 Investigation . | . . . . Extermination . | . . . . Reinforcement 2 | . 1 . 1 Assault . | . . . . Garrison . | . . . . Intercept . | . . . . Searches Triggered . | . . . . Construction Impeded . | . . . . Haulers Reinforced . | . . . . Active Scanning Responses . | . . . . Cargo Convoy Interrupts . | . . . . Stealth | -11 -10 -10 -9 --------- Run | Yrd Mat Min Mat Distress Signals 1 | . . . 1 Communications Jammed . | . . . . Distress Signals . | . . . . Times Spotted 18 | . 4 3 11 Peak Tracking Total 6 | . 2 3 6 Tactical Retreats 2 | . . . 2 Traps | -11 -10 -10 -9 ------- Run | Yrd Mat Min Mat Traps Triggered . | . . . . Indirectly . | . . . . Trap Hack Attempts . | . . . . Triggered . | . . . . Disarmed . | . . . . Reprogrammed . | . . . . Reused . | . . . . Traps Extracted . | . . . . Installed . | . . . . Triggered . | . . . . Machines | -11 -10 -10 -9 ---------- Run | Yrd Mat Min Mat Machines Disabled . | . . . . Max in Single Turn . | . . . . Machines Repaired . | . . . . Machines Dismantled . | . . . . Machines Sabotaged . | . . . . Overloaded Fab Kills . | . . . . Hacking | -11 -10 -10 -9 --------- Run | Yrd Mat Min Mat Machines Accessed 2 | . 2 . . Terminals 2 | . 2 . . Fabricators . | . . . . Repair Stations . | . . . . Recycling Units . | . . . . Scanalyzers . | . . . . Garrison Access . | . . . . Total Hacks 7 | . 7 . . Successful 3 | . 3 . . Failed 4 | . 4 . . Catastrophic . | . . . . Database Lockouts . | . . . . Manual . | . . . . Terminals 7 | . 7 . . Fabricators . | . . . . Repair Stations . | . . . . Recycling Units . | . . . . Scanalyzers . | . . . . Garrison Access . | . . . . Terminal Hacks 3 | . 3 . . Alert Level 1 | . 1 . . Locate Traps 1 | . 1 . . Hauler Manifests 1 | . 1 . . Fabricator Hacks . | . . . . Repair Station Hacks . | . . . . Recycling Unit Hacks . | . . . . Scanalyzer . | . . . . Garrison Access Hacks . | . . . . Unauthorized Hacks . | . . . . Terminals . | . . . . Fabricators . | . . . . Repair Stations . | . . . . Recycling Units . | . . . . Scanalyzers . | . . . . Garrison Access . | . . . . Data Cores Recovered . | . . . . Used . | . . . . Hacking Detections . | . . . . Full Trace Events . | . . . . Feedback Events . | . . . . Feedback Blocked . | . . . . Robot Schematics Acquired . | . . . . Robots Built . | . . . . Authchips . | . . . . Time . | . . . . Total Robot Build Rating . | . . . . Part Schematics Acquired . | . . . . Parts Built . | . . . . Authchips . | . . . . Time . | . . . . Total Part Build Rating . | . . . . Parts Repaired . | . . . . Time . | . . . . Parts Recycled . | . . . . Recycled Matter . | . . . . Retrieved Matter . | . . . . Retrieved Components . | . . . . Parts Scanalyzed . | . . . . Part Schematics Acquired . | . . . . Parts Damaged . | . . . . Bothacking | -11 -10 -10 -9 ------------ Run | Yrd Mat Min Mat Used RIF Installer . | . . . . Robots Hacked . | . . . . Non-combat . | . . . . Combat . | . . . . Robot Hacks Applied . | . . . . Relay Couplers Released . | . . . . Fabnet Peak Effective % . | . . . . Robots Rewired . | . . . . Allies Hacked . | . . . . Hacks Repelled . | . . . . Allies | -11 -10 -10 -9 -------- Run | Yrd Mat Min Mat Total Allies 1 | . . 1 . Largest Group 1 | . . 1 1 Highest-Rated Group 31 | . . 31 31 Highest-Rated Ally 31 | . . 31 31 Total Orders . | . . . . Ally Attacks . | . . . . Total Damage . | . . . . Kills . | . . . . Allies Corrupted . | . . . . Allies Melted . | . . . . Intel | -11 -10 -10 -9 ------- Run | Yrd Mat Min Mat Active Infowar (turns) 1665 | 32 538 937 158 Sensors 493 | . . 335 158 Seismic 1172 | 32 538 602 . Robot Analysis Total . | . . . . Derelict Logs Recovered 1 | . . 1 . Drone Launches . | . . . . Drone Recoveries . | . . . . Exploration | -11 -10 -10 -9 ------------- Run | Yrd Mat Min Mat Turns Passed 1928 | 295 538 937 158 Spaces Moved 1400 | 161 325 547 367 Core 34 | 34 . . . Treads 1003 | 127 325 547 4 Legs . | . . . . Wheels . | . . . . Hover . | . . . . Flight 363 | . . . 363 Fastest Speed 34 | 50 160 160 34 Average Speed 124 | 138 160 160 35 Slowest Speed 250 | 250 160 160 160 Overloaded Moves . | . . . . Propulsion Burnouts . | . . . . Robots Hopped 13 | . . . 13 Potential Cave-ins . | . . . . Cave-ins Triggered . | . . . . Exploration Rate (%) 39 | 9 36 79 34 Regions Visited 3 Branch Regions 1 Pre-discovered Areas 1 | . . 1 . Known Exits Taken . | . . . . Unknown Exits Taken 3 | 1 1 1 . Scrap Searched . | . . . . Spaces Dug 2 | . . . 2 Terrain Destroyed 2 | . . . 2 Melee . | . . . . Projectile 2 | . . . 2 AOE . | . . . . Terrain Rammed . | . . . . Walls Destroyed . | . . . . Machines Disabled . | . . . . Actions | -11 -10 -10 -9 --------- Run | Yrd Mat Min Mat Total 1504 | 194 338 596 376 Wait 51 | 3 10 34 4 Move 1372 | 160 324 546 342 Hop 12 | . . . 12 Pick Up 8 | 1 1 6 . Fast Attach 8 | 7 . . 1 Attach 4 | . . . 4 Detach 3 | . . . 3 Swap 7 | 2 . 1 4 Drop 5 | . . 1 4 Fire 34 | 21 3 8 2 Melee . | . . . . Ram . | . . . . Kick . | . . . . Crush . | . . . . Escape Stasis . | . . . . Rewire . | . . . . Trap . | . . . . Miscellaneous . | . . . . Route ------- -11/Scrapyard -10/Materials -10/Mines (discovered 3 exits: *Mat x2 / [*Exi]) -9/Materials (discovered 1 exit: *Min) History --------- Turn | Location | Event 14 | -11/Scrapyard | Discovered new exit (range 15) 296 | -11/Scrapyard | Entered Materials 316 | -10/Materials | Build established: Mutant 739 | -10/Materials | Discovered new exit (range 13) 834 | -10/Materials | Entered Mines 903 | -10/Mines | Discovered new exit (range 7) 1010 | -10/Mines | Discovered new exit (range 13) 1138 | -10/Mines | Deemed a non-threat by the Exiles lab entrance 1140 | -10/Mines | Discovered new exit (range 5) 1427 | -10/Mines | Found a damaged Exp. Sensor Array with a note attached 1436 | -10/Mines | Found Prototype Device 1436 | -10/Mines | Identified Exp. Sensor Array 1542 | -10/Mines | Received a Mining Laser from a helpful Derelict 1583 | -10/Mines | Learned location of Storage (-7) 1771 | -10/Mines | Entered Materials 1771 | -9/Materials | Accompanied by 1 ally 1771 | -9/Materials | Evolved 2 slots: Propulsion x1, Utility x1 1859 | -9/Materials | Discovered new exit (range 16) 1864 | -9/Materials | Identified exit to Mines 1929 | -9/Materials | Self-destructed Last Messages --------------- from here!" 01810_ ET-E6P(g) slips back into the shadows. 01818_ K-01 Serf collects debris. 01819_ O-16 Technician: "IFF HANDSHAKE FAILED. SECURING TERMINAL." 01824_ Connecting with Terminal... 01824_ Current location identified: Materials 01825_ ALERT: Hostiles spotted, dispatching reinforcements to Terminal M005. 01828_ W-16 Scout sends out distress signal. 01852_ Connecting with Recycling Unit... 01859_ EXIT=FOUND 01864_ EXIT=IDENTIFIED: MINES 01864_ K-01 Serf collects debris. 01874_ Acquired Weight Redist. System. 01887_ Acquired Terrain Scan Processor. 01917_ U-05 Engineer builds a Wall. 01922_ Flight Unit destroyed. 01925_ Mining Laser destroyed. 01925_ Critical hit (Burn: +37). Map ----- +----------------------------------------------------+ | ???????????????????????????????????????????????? | | ???????????????????????????????????????????????? | | ?????????????????????????????????????????????### | | ?????????????????????????????????????????????#"" | | ?????????????????????????????????????????????#" | | ?????????????????????????????????????????????#"! | | ?????????????????????????????????????????????#"" | | ?????????????????????????????????????????????#"! | | ?????????????????????????????????????????????#" | | ????????????????????????????????? ???????????#"" | | ???????????????????????????????## ???????????### | | ??????????????????????????????# ##?????????? | | ?????????????????????????????## ?????????? | | ?????????????????????????????? ??????????? | | ??????????????????????????????# ??????????? | | ??????????????????????????????? ???????????? | | ???????????????????????????????# #???????????? | | ???????????????????????????????# #???????????? | | ???????????????????????????????# #???????????? | | ????????????????????##########?# #???????????? | | ????????????????????# ### ###?????????? | | ????????????????????# """ # #?????????? | | ????????????????????# """ # #?????????? | | ????????????????X???# """ [ # ########### | | ????????????????????# Y Tlg | | ????????????????????# @ # x ########### | | ????????????????????# # #????????# | | ????????????????????# u"Y" # #????????# | | ????????????????????# g """ ####+########????# | | ????????????????????####u##### #????# | | ?????????????????????### #???# #????# | | ???????????????????????#g#???# " """"" #????# | | ???????????????????????# #???# """"""""" #????# | | ???????????????????????# #???# """ """ #????# | | ???????????????????????# #???# #????## | | ???????????????????????# #???# ????????? | | ???????????????????????# #???#########?????????? | | ???????????????????????? #?????????????????????? | | ???????????????????????? ??????????????????????? | | ????????????????????????+??????????????????????? | | ???????????????????????? ??????????????????????? | | ???????????????????????? ??????????????????????? | | ???????????????????????? ??????????????????????? | | ???????????????????????? ??????????????????????? | | ???????????????????????????????????????????????? | | ???????????????????????????????????????????????? | | ???????????????????????????????????????????????? | | ???????????????????????????????????????????????? | | ???????????????????????????????????????????????? | | ???????????????????????????????????????????????? | +----------------------------------------------------+ Best States ------------- Heat Dissipation 28 Energy Generation 10 Energy Capacity 250 Matter Stores 300 Matter Capacity 300 Sight Range 16 Robot Scan Range 20 Terrain Scan Density 85 Additional Mass Support 6 Evasion (%) 63 Recoil Reduction 2 Item Schematics ----------------- None Robot Schematics ------------------ None Fabricated ------------ Nothing Repaired ---------- Nothing Alien Tech Used ----------------- None Achievements -------------- None Challenges ------------ None Game ------ Seed PointUtilityCorpse Manual? 0 Play Time 00:17:09 Cumulative 8.3 hours Start 2025.10.04 @ 16:59:29 End 2025.10.04 @ 17:32:20 Sessions 2 Manual Loads 0 Difficulty Rogue Special Mode None Game No. 23 Rogue 16 Adventurer 7 Explorer 0 Win Type - Total 0 Types 0/0/0/0/0/0/0/0/0/0 Lore% 1 Gallery% 12 Achievement% 11 Wizard Run 0 Options --------- Layout 1 ASCII 0 Keyboard 1 Movement Vi Keybinds 0 Fullscreen 1 Font 24/Smallcaps Map View 76x35 Zoom Use 13% Tactical HUD 1 Map Filters NONE Filters NONE Steam 1 RUN: 04edc8ee-69e8-48b8-b361-f34d518ad810